Workbook

Sheet Guidance
B1: CONFIDENTIAL - DO NOT DISTRIBUTE
B2: Guidance for Completing the BDC Capital DEI Reporting Template
B4: The BDC Capital ("BDCC") DEI Reporting Template is inspired by the ILPA Team Diversity Template* and is intended to capture specific facets of diversity, equity, and inclusion ("DEI") within GP organizations, including gender, race/ethnicity, and other aspects of diversity. Canadian LPs other than BDCC are encouraged to also use this template in the Canadian market. The modifications herein were made by BDC Capital in consultation with other Canadian-based LPs to greater align with the needs specific to the marketplace, employing the optionality of the original ILPA Diversity Metrics Template to make it fit-for-purpose for BDCC's specific needs.
B6: Guidance from ILPA Diversity Template (including BDCC modifications)
B8: Purpose of the Diversity Metrics Template ILPA recognizes the imperative for more fulsome and consistent reporting on metrics related to team diversity within GP/VC organizations as well as reporting on metrics related to diversity at the portfolio company level. Greater uniformity in diversity information being collected and provided to LPs is essential to longer-term assessments of our industry’s progress and the wider impact on diversity across PE- and VC-backed companies and industries around the world. This template is meant to serve as a standardized format for sharing diversity metrics by role within GP/VC organizations and portfolio companies across various diversity dimensions, including gender, race/ethnicity, identification as LGBTQ2+ and veterans, and persons with disabilities. As LPs begin to request diversity metrics on a more regular basis, it is anticipated that quantitative information will provide a backdrop for an equally essential qualitative discussion. ILPA expects that qualitative information will include steps that managers have proactively taken to enhance the diversity of candidate pools and promotion tracks for open positions within the Firm/Management Company (or reporting entity), and efforts to enhance diversity among open Board positions in which the Firm has a significant or controlling interest, i.e., influence on, or the ability to steer, such appointments.
B10: Scope of the Template For single-product Firms/Management Companies, the template should include information on full time employees for the entire Firm, broken down by leadership tier/role. For multi-product asset managers, the template should include information on the pertinent asset class/strategy or fund family related to the fund being diligenced or in which BDCC (or "the LP") has already made a commitment. Information provided via this template should reflect team composition as of December 31 of the preceding calendar year. For GPs reporting on multiple funds, create copies of the "Portfolio - DEI - Fund A" template tab, one for each fund. The staff movement information is intended to capture hiring, promotions and departures across role designations for full time employees at the Firm/Management Company (or pertinent business entity) over a 12-month period. Given the nature of how staff movement takes place, the information is intended to represent the totals for each category over the specified 12-month period, e.g., each movement for an individual should be recorded, so if an employee is hired and subsequently departs within a reported 12-month period, the impact on total staff movement would be zero. Note: BDCC has used the categorization "Racialized, Black, or People of Color ("Visible Minorities")" (see Definitions tab) to represent racial diversity (based on the Canadian Standards Council and Stats Can guidelines), whereas the ILPA template requests detailed race/ethnicity data based on U.S. EEOC (Equal Employment Opportunity Commission) guidelines. BDCC has also modified the portfolio company reporting template as the ILPA format is designed for positions in which the GP has significant or controlling interest.
B12: Best Practices in Data Collection and Reporting ILPA believes that it is best practice to provide self-reported data if it is available; wherever possible, template users should provide information that has been voluntarily provided by employees according to how they self-identify and allowing for the option “prefer not to provide”, collected in line with appropriate disclosures as to how the confidentiality of the information will be preserved, how the information will be reported and to whom and for what purposes the information will be utilized, e.g., to inform employee policies, benefits, engagement and retention, recruiting processes.
B14: Acknowledging Limitations to Data Collection and Localized Nuances in Diversity Metrics Due to the quantitative nature of the template, certain metrics may be interpreted differently because of geographic or industry context of the company and method for calculation. Organizations will need to be mindful of local laws and cultural norms, which can shape or constrain the way the data is provided within the template. The template provides for sharing additional contextual information beyond the metrics collected across the various tables, or in the event that the Firm is unable to collect the information for a variety of reasons. For example: • In cases where the Firm, as pertains to the fund being diligenced, operates across multiple geographies, template users can expand on the diversity demographics of the underlying offices represented within the pertinent fund complex. • In cases where the Firm, due to jurisdiction-specific privacy laws or other constraints, can only collect information on gender diversity. • In cases where total metrics include portfolio companies in countries where the profile of well-represented groups by race/ethnicity differs from the balance of the portfolio, template users can expand on the impacts of including such companies by providing additional context in the field provided. • For Firms with primary operations in certain jurisdictions where localized interpretations of diversity are more nuanced than what is captured in the template, e.g., religious, or ethnic diversity beyond definitions provided, countries of origin or socioeconomic background, template users can expand on the diversity demographics of the team using the additional information fields.
B15: An additional field (“Information Not Collected/Prefer Not to Provide”) has been provided in the context of each section to provide users with the opportunity to provide information on a best-efforts basis, with the goal of providing a comprehensive view of the demographics of the Firm (or pertinent business entity). Where information on gender and/or race/ethnicity is not collected or otherwise unavailable, individual FTEs can be included using this field. The field is intended to be used in cases such as: • The indicated information is not collected from employees due to local privacy laws, cultural norms or other legal or other restrictions inhibiting the collection of such information from employees • The information is collected, but a subset of employees has elected not to provide in response to opportunities to self-identify on a voluntary basis (i.e., indicative of response rates under 100% to employee engagement surveys, DEI audits, HRIS systems) Additionally, some additional dimensions of diversity are inherently intersectional in nature and have therefore not been included in the tables capturing gender and race/ethnicity, to avoid inadvertently singling out individuals who may identify as LGBTQ2+, persons with disability or veterans/individuals with military service. Additionally, for Firms lacking a dedicated HR function, information beyond visible gender and race/ethnicity is more challenging to capture on a self-reported basis. As such, this information is captured separately and distinctly from gender and race/ethnicity by level and function. It is worth noting that “veteran status” as included in the GP - Quantitative and Portfolio - DEI - Fund A tabs is understood to be an area of particular interest in only certain jurisdictions, e.g., U.S. ILPA has elected to include this information in the template in line with broad-based interest in this information among U.S.-based LPs but does not anticipate that this information would be routinely tracked or provided in other jurisdictions.
B17: Information on Ownership Ownership of the Firm and the presentation of the diversity demographics by proportionate economic interest is intended to be provided for those individuals exercising executive responsibility that conveys meaningful influence or control, direct or indirect, over the Firm’s decisions, often aligned with voting power. Control is defined in some jurisdictions as the exercise of the right to vote a certain percentage of a class of interests in the entity, or the ability to sell, direct the sale or receive the proceeds of the sale of a certain percentage of the entity’s securities, e.g., 25% under the Advisers Act in the U.S.
B18: Information on Investment Committees Demographic information for individuals on Investment Committees is intended to reflect the individuals in a position to influence or direct decisions regarding the specific diligenced Fund’s deployment of capital, i.e., not all Investment Committees of the Firm. In cases where the Firm does not have an Investment Committee, information should be provided with respect to the individuals with ultimate investment decision-making authority and responsibility.
B20: Prospective Enhancements for Future Consideration Recognizing that the enhancements in the diversity metrics captured herein are a meaningful step forward for the industry, ILPA will carefully consider whether specific enhancements to this template could be provided in the future to allow for the presentation of additional information not captured in these revisions, such as: • Turnover information (hiring/appointments, promotions, departures) across portfolio company Boards and senior management • Information on the diversity of ownership among portfolio companies • Diversity demographics related to the distribution of carried interest – ILPA is mindful of privacy considerations involved in the presentation of such information, such that individuals are not inadvertently singled out. At present, the emphasis is on pay equity measures in place at the Firm, as described in the detailed questions within the ILPA DDQ • Total workforce diversity among portfolio companies • Additional information indicative of cognitive diversity, such as socioeconomic background, social mobility, educational institution • Application of the template beyond private equity (buyouts and venture) through partnership with organizations representing other private markets strategies that may be at different points in the DEI journey. For example, diversity among borrowers for debt platforms (note that some private credit Firms may elect to apply the template as is, substituting “Borrowers” with “Portfolio Companies”) • Diversity as represented among a Firm’s supply chain, e.g., vendors in use, sub-contractors, etc. The template will be reviewed periodically with an eye towards aligning with market practices and an evolving understanding of the most critical aspects of diversity being measured and monitored by the industry. Any recommended revisions in future will be subject to a similarly consultative process as that conducted in line with the 2021 revisions. Finally, it is important to note that numbers only tell part of the story when it comes to diversity, equity and inclusion at any organization, but they can be an important place to start. We hope the view provided by this type of disclosure can help lay the foundation for a more fully informed conversation that contributes to real change and more sustainable long-term value creation.
B21: *The ILPA Team Diversity Template can be found at: | E21: https://go.ilpa.org/l/224412/2020-11-02/kdjhs

Sheet FAQ
B2: Frequently Asked Questions
B4: Who will have access to my data?
B5: Access will be restricted to the BDC Capital Funds team (or the LP requesting this completed template). The data provided in this template will be reported on an aggregated, anonymized basis only.
B7: What will BDC Capital do with my data and why is it important?
B8: As a thought leader in the Canadian VC ecosystem and Canada's most active LP, BDC Capital is continuously seeking ways to serve the Canadian VC asset class and encourage the global competitiveness of Canadian GPs and start-ups. Data has shown that diversity of thought and experience contribute to better performance overall. Even more important, DEI ensures that people find dignity and respect when they show up for work everyday. By determining a baseline for where our industry is at in terms of DEI, we will be better positioned to improve over time. Recently, BDC Capital released a DEI report, in partnership with Diversio, summarizing results of a survey administered across its Direct investment portfolio. We are reaching out to our partners to measure the baseline as it relates to diversity within GP organizations and their respective portfolios, with the intent to observe, report on, and encourage progress over time.
B10: I would like to improve my Firm's DEI policies and practices; where do I begin?
B11: BDC Capital partners with a number of standard setting organizations offering libraries of DEI resources and best practices. Please consult the following and feel free to reach out to the BDC Capital Funds Team (or the LP requesting this completed template) to discuss at any time.
B13: ILPA DEI Roadmap | C13: International | D13: https://ilpa.org/ilpa_di/
B14: CVCA DEI Resource Library | C14: Canadian | D14: https://www.cvca.ca/research-insight/diversity-inclusion/resource-library/
B15: Diversio (available for purchase) | C15: Canadian | D15: https://diversio.com/product/ilpa-ddq-dei-policy-starter-pack/
B17: What has been the industry response to date regarding the collection of DEI data?
B18: Both the public and private markets are embracing the importance of disclosing and tracking DEI data in order to further progress in promoting a more diverse, equitable and inclusive culture. Publicly-listed companies, crown corporations, and other private organizations are increasingly being held to the same standard. Industry associations, including ILPA and the CFA Institute, are putting out early versions of guidance on how companies can show their support and report progress on DEI policies and practices. For more information on this, refer to the Diversity Disclosure Requirements (Reqs) tab.
B20: Who on my team should be tasked with leading the DEI data collection initiative on behalf of the Firm?
B21: While it depends on the structure of your team, we often see DEI data collection remain within the responsibilities of your HR team. However, for GPs with smaller team structures, we recommend identifying the individual who is responsible for most data collection efforts (including financial information from portfolio companies). It is important that there is senior oversight throughout the process to ensure integrity of the data.
B23: My portfolio companies are pushing back on my DEI data request; what are the best next steps?
B24: We encourage and expect all of our portfolio GPs to initiate a dialogue on the importance of DEI with their portfolio companies. To the extent that annual information is not available following a request, or a portfolio company and/or Firm employee exercises its rights to privacy on a portion of all of the data request, please use the "Information Not Collected / Prefer Not To Provide" section on the GP - Quantative tab and the "Rationale for Non-Disclosure" section on the Portfolio - DEI tab. We recommend that you re-engage on the subject with portfolio companies each year, at a minimum.
B26: I do not feel comfortable requesting data on LGBTQ2+ status from my employees or portfolio companies; what are the best next steps?
B27: Please use the "Information Not Collected / Prefer Not To Provide" section on the GP - Quantative tab and the "Rationale for Non-Disclosure" section on the Portfolio - DEI tab.
B29: I would like to provide additional data/information related to my Firm's approach to DEI that is not covered in this template (e.g., diversity of languages spoken, faith, immigrant status, and/or other); what are the best next steps?
B30: Please use the designated text boxes across the reporting template and/or to reach out to your BDC Capital relationship lead (or the LP requesting this completed template) to discuss.
B32: Will my Firm be ranked or penalized based on our approach to DEI?
B33: The purpose of this data and information collection effort is to establish a baseline for the Canadian VC asset class, on which progress will be measured over time. The intent is not to judge, or favor, any one GP. We recognize that we are only at the beginning of this important journey and are seeking ways to best improve over time. For GPs who are interested in determining where they fall on the spectrum of diverse representation and best practices, we can in time offer a simple benchmarking exercise against the broader opportunity set. It is important to note however that all data provided in this template will be reported on an aggregated, anonymized basis only, with no exceptions.

Sheet Definitions
B2: Template Definitions
B4: Race and Ethnicity
B5: Racialized, Black, or People of Color ("Visible Minorities")1,2 | C5: Persons, other than Aboriginal peoples, who are non-Caucasian in race or non-white in color. The visible minority population consists mainly of the following groups: Arab, Black, Chinese, Filipino, Japanese, Korean, Latin American, South Asian, Southeast Asian, West Asian.
B6: Indigenous Peoples1,2 | C6: First Nations Peoples, Métis Nation, Inuit, and other Indigenous Communities.
B7: Information Not Collected / Prefer Not to Provide | C7: Information on racial identity has not been collected or individuals have elected not to provide.
B8: Gender
B9: Female | C9: An individual self-identifying as a woman, not exclusively cisgender individuals.
B10: Male | C10: An individual self-identifying as a man, not exclusively cisgender individuals.
B11: Nonbinary | C11: Relating to or being a person who identifies with or expresses a gender identity that is neither entirely male nor entirely female.
B12: Information Not Collected / Prefer Not to Provide | C12: Information on gender identity has not been collected or individuals have elected not to provide.
B13: (GP) Investment Professionals
B14: Firm and Investment Leadership (Partners and C-Level Executives) | C14: For example, CEO, President, Managing Partners, Partners and Managing Directors with primary responsibility for overall leadership of the management company and oversight of the investment team, sometimes defined as the Executive Committee. May or may not be directly involved in sourcing, evaluating, executing, and managing deals. Typically responsible for final deal decisions, including exits. Typically participates in any carried interest earned from exited deals and/or profits of the management company. Does not include Operations Leadership (defined below).
B15: Senior Investment Professionals | C15: Investment professionals who serve in a decision-making capacity but are not part of firm leadership, e.g., may include Managing Directors, Senior Directors, Directors with a meaningful role in sourcing, recommending and leading investments and contributing to firm investment decision-making. May include dedicated portfolio company Operating Partners that work closely alongside deal professionals in managing investments.
B16: Other Investment Professionals | C16: For example, Principals, Vice Presidents, Associates, Analysts. Primarily responsible for sourcing, evaluating, executing, managing and supporting deals. May or may not participate in carried interest earned from exited deals and/or profits of the management company.
B17: (GP) Non-Investment Professionals
B18: Operations and Administration Leadership (Partners and C-Level Executives) | C18: For example, CFO, COO, CAO, CCO, General Counsel, CHRO, IR Partner, Managing Directors or partners on a non-investment team. Primarily responsible for leadership of the finance, marketing, investor relations, legal, and administrative teams (and any other unit detailed below). May or may not have input on final investment decisions (typically operational improvements). Typically participates in any carried interest earned from exited deals. May or may not participate in any profits of the management company.
B19: Other Operations and Administrative Professionals | C19: Operating Professionals / Entrepreneurs in Residence, Marketing / Investor Relations / Communications, Financial / Accounting, Legal / Compliance, Administrative, Other Operations / Administration Team Members
B20: Additional Diversity Information
B21: LGBTQ2+2 | C21: A person who identifies as a member of the LGBTQ2+ community.
B22: Veteran Status | C22: A person who has been honorably discharged following service in any branch of the military.
B23: Persons with disabilities | C23: A person with long-term physical, mental, intellectual or sensory impairment(s) which in interaction with various barriers may hinder their full and effective participation in society on an equal basis with others.
B24: Portfolio Company Data
B25: Total Employees | C25: Includes full-time, permanent staff and consultants/contractors.
B26: Management Team | C26: For example, CEO, COO, CFO, CTO, CMO, and CSO.
B27: Board of Directors | C27: Includes shareholder representatives and independent board members.
B29: 1. Diversity Institute (Sponsored by the Standards Council of Canada) | C29: Publicly-Available-Specification-PAS.pdf (secureservercdn.net)
B30: 2. Stats Can | C30: Canadian Survey on Business Conditions, fourth quarter of 2021 (statcan.gc.ca)

Sheet GP - Quantitative
B2: GP Team Diversity Template
B4: GP Name | C4: GP A
B5: Period End | C5: December 31, YYYY
B6: Prepared By | C6: Name, Title
B8: Self-Reported Gender & Diversity Metrics | C8: Yes/No/Other | D8: If Other, please describe
B10: Summary of GP Annual DEI Metrics
B12: Quantitative - Ownership & Investment Committee
B14: Note: 'Racialized, Black, or People of Colour' + 'Indigenous Peoples' + 'Information Not Collected / Prefer Not To Provide' is not designed to add up to Total column
B16: Ownership of the General Partner ("GP") (%) | G16: Total | H16: Racialized, Black, or People of Color | I16: Indigenous Peoples | J16: Information Not Collected / Prefer Not To Provide | M16: GP Ownership
B17: Male | G17: 50% | H17: 25% | I17: 0% | J17: 0% | L17: % Female | M17: =G18 -> 50%
B18: Female | G18: 50% | H18: 10% | I18: 10% | J18: 0% | L18: % Visible Minorities | M18: =H21 -> 35%
B19: Nonbinary | G19: 0% | H19: 0% | I19: 0% | J19: 0% | L19: % Indigenous Peoples | M19: =I21 -> 10%
B20: Information Not Collected / Prefer Not To Provide | G20: 0% | H20: 0% | I20: 0% | J20: 0%
F21: Total GP Ownership | G21: =SUM(G17:G20) -> 100% | H21: =SUM(H17:H20) -> 35% | I21: =SUM(I17:I20) -> 10% | J21: =SUM(J17:J20) -> 0%
B23: Investment Committee Composition ("IC") (#) | G23: =G16 -> Total | H23: =H16 -> Racialized, Black, or People of Color | I23: =I16 -> Indigenous Peoples | J23: =J16 -> Information Not Collected / Prefer Not To Provide | M23: Investment Committee
B24: =B17 -> Male | G24: 1 | H24: 0 | I24: 0 | J24: 0 | L24: =L17 -> % Female | M24: =IFERROR(G25/G28,"") -> 33%
B25: =B18 -> Female | G25: 2 | H25: 1 | I25: 1 | J25: 0 | L25: =L18 -> % Visible Minorities | M25: =IFERROR(H28/G28,"") -> 17%
B26: =B19 -> Nonbinary | G26: 3 | H26: 0 | I26: 0 | J26: 0 | L26: =L19 -> % Indigenous Peoples | M26: =IFERROR(I28/G28,"") -> 17%
B27: =B20 -> Information Not Collected / Prefer Not To Provide | G27: 0 | H27: 0 | I27: 0 | J27: 0
F28: Total IC Members | G28: =SUM(G24:G27) -> 6 | H28: =SUM(H24:H27) -> 1 | I28: =SUM(I24:I27) -> 1 | J28: =SUM(J24:J27) -> 0
B30: Quantitative - Firm Employees
U31: NOTE: Represents % of Total Firm Employees | AD31: NOTE: Represents % of Sub-Total
B32: Total Firm Employees (#) | G32: =G16 -> Total | H32: =H16 -> Racialized, Black, or People of Color | I32: =I16 -> Indigenous Peoples | J32: =J16 -> Information Not Collected / Prefer Not To Provide | M32: Total Firm Employees | N32: Senior Investment Team | O32: Junior Investment Team | P32: Ops Team | U32: Total Firm Employees (#) | Y32: Total | Z32: =H16 -> Racialized, Black, or People of Color | AA32: =I16 -> Indigenous Peoples | AB32: =J16 -> Information Not Collected / Prefer Not To Provide | AD32: Total Firm Employees (#) | AH32: =Y32 -> Total | AI32: =Z32 -> Racialized, Black, or People of Color | AJ32: Indigenous Peoples | AK32: Information Not Collected / Prefer Not To Provide
B33: =B24 -> Male | C33: Firm and Investment Leadership (Partners and C-Level Executives) | G33: 2 | H33: 0 | I33: 0 | J33: 0 | L33: =L17 -> % Female | M33: =IFERROR(G44/G58,"") -> 29% | N33: =IFERROR((G39+G40)/(G33+G34+G39+G40+G45+G46+G51+G52),"") -> 25% | O33: =IFERROR(G41/(G41+G35+G47+G53),"") -> 33% | P33: =IFERROR((G42+G43)/(G36+G37+G42+G43+G48+G49+G54+G55),"") -> 33% | U33: Male | V33: Firm and Investment Leadership (Partners and C-Level Executives) | Y33: =IFERROR(G33/$G$58, "") -> 14% | Z33: =IFERROR(H33/$G$58, "") -> 0% | AA33: =IFERROR(I33/$G$58, "") -> 0% | AB33: =IFERROR(J33/$G$58, "") -> 0% | AD33: =U33 -> Male | AE33: Firm and Investment Leadership (Partners and C-Level Executives) | AH33: =IFERROR(G33/G$38,0) -> 29% | AI33: 0% | AJ33: 0% | AK33: 0%
C34: Senior Investment Professionals | G34: 2 | H34: 0 | I34: 1 | J34: 0 | L34: =L18 -> % Visible Minorities | M34: =IFERROR(H58/G58,"") -> 21% | N34: =IFERROR((H33+H34+H39+H40+H45+H46+H51+H52)/(G33+G34+G39+G40+G45+G46+G51+G52),"") -> 0% | O34: =IFERROR((H35+H41+H47+H53)/(G35+G41+G47+G53),"") -> 100% | P34: =IFERROR((H36+H37+H42+H43+H48+H49+H54+H55)/(G36+G37+G42+G43+G48+G49+G54+G55),"") -> 0% | V34: Senior Investment Professionals | Y34: 14% | Z34: 0% | AA34: 7% | AB34: 0% | AE34: Senior Investment Professionals | AH34: 29% | AI34: 0% | AJ34: 100% | AK34: 0%
C35: Other Investment Professionals | G35: 2 | H35: 2 | I35: 0 | J35: 0 | L35: =L19 -> % Indigenous Peoples | M35: =IFERROR(I58/G58,"") -> 14% | N35: =IFERROR((I33+I34+I39+I40+I45+I46+I51+I52)/(G33+G34+G39+G40+G45+G46+G51+G52),"") -> 25% | O35: =IFERROR((I35+I41+I47+I53)/(G35+G41+G47+G53),"") -> 0% | P35: =IFERROR((I36+I37+I42+I43+I48+I49+I54+I55)/(G36+G37+G42+G43+G48+G49+G54+G55),"") -> 0% | V35: Other Investment Professionals | Y35: 14% | Z35: 14% | AA35: 0% | AB35: 0% | AE35: Other Investment Professionals | AH35: 29% | AI35: 100% | AJ35: 0% | AK35: 0%
C36: Operations and Administration Leadership (Partners and C-Level Executives) | G36: 1 | H36: 0 | I36: 0 | J36: 0 | V36: Operations and Administration Leadership (Partners and C-Level Executives) | Y36: 7% | Z36: 0% | AA36: 0% | AB36: 0% | AE36: Operations and Administration Leadership (Partners and C-Level Executives) | AH36: 14% | AI36: 0% | AJ36: 0% | AK36: 0%
C37: Other Operations and Administration Professionals | G37: 0 | H37: 0 | I37: 0 | J37: 0 | V37: Other Operations and Administration Professionals | Y37: 0% | Z37: 0% | AA37: 0% | AB37: 0% | AE37: Other Operations and Administration Professionals | AH37: 0% | AI37: 0% | AJ37: 0% | AK37: 0%
G38: =SUM(G33:G37) -> 7 | H38: =SUM(H33:H37) -> 2 | I38: =SUM(I33:I37) -> 1 | J38: =SUM(J33:J37) -> 0 | Y38: 50% | Z38: 14% | AA38: 7% | AB38: 0% | AH38: 100% | AI38: 100% | AJ38: 100% | AK38: 0%
B39: =B25 -> Female | C39: =C33 -> Firm and Investment Leadership (Partners and C-Level Executives) | G39: 1 | H39: 0 | I39: 1 | J39: 1 | U39: Female | V39: =V33 -> Firm and Investment Leadership (Partners and C-Level Executives) | Y39: 7% | Z39: 0% | AA39: 7% | AB39: 7% | AD39: =U39 -> Female | AE39: =AE33 -> Firm and Investment Leadership (Partners and C-Level Executives) | AH39: =IFERROR(G39/G$44,0) -> 25% | AI39: 0% | AJ39: 100% | AK39: 50%
C40: Senior Investment Professionals | G40: 1 | H40: 0 | I40: 0 | J40: 1 | V40: Senior Investment Professionals | Y40: 7% | Z40: 0% | AA40: 0% | AB40: 7% | AE40: Senior Investment Professionals | AH40: 25% | AI40: 0% | AJ40: 0% | AK40: 50%
C41: =C35 -> Other Investment Professionals | G41: 1 | H41: 1 | I41: 0 | J41: 0 | V41: =V35 -> Other Investment Professionals | Y41: 7% | Z41: 7% | AA41: 0% | AB41: 0% | AE41: =AE35 -> Other Investment Professionals | AH41: 25% | AI41: 100% | AJ41: 0% | AK41: 0%
C42: =C36 -> Operations and Administration Leadership (Partners and C-Level Executives) | G42: 1 | H42: 0 | I42: 0 | J42: 0 | V42: =V36 -> Operations and Administration Leadership (Partners and C-Level Executives) | Y42: 7% | Z42: 0% | AA42: 0% | AB42: 0% | AE42: =AE36 -> Operations and Administration Leadership (Partners and C-Level Executives) | AH42: 25% | AI42: 0% | AJ42: 0% | AK42: 0%
C43: =C37 -> Other Operations and Administration Professionals | G43: 0 | H43: 0 | I43: 0 | J43: 0 | V43: =V37 -> Other Operations and Administration Professionals | Y43: 0% | Z43: 0% | AA43: 0% | AB43: 0% | AE43: =AE37 -> Other Operations and Administration Professionals | AH43: 0% | AI43: 0% | AJ43: 0% | AK43: 0%
G44: =SUM(G39:G43) -> 4 | H44: =SUM(H39:H43) -> 1 | I44: =SUM(I39:I43) -> 1 | J44: 2 | Y44: 29% | Z44: 7% | AA44: 7% | AB44: 14% | AH44: 100% | AI44: 100% | AJ44: 100% | AK44: 100%
B45: =B26 -> Nonbinary | C45: =C33 -> Firm and Investment Leadership (Partners and C-Level Executives) | G45: 0 | H45: 0 | I45: 0 | J45: 0 | U45: Nonbinary | V45: =V33 -> Firm and Investment Leadership (Partners and C-Level Executives) | Y45: 0% | Z45: 0% | AA45: 0% | AB45: 0% | AD45: =U45 -> Nonbinary | AE45: =AE33 -> Firm and Investment Leadership (Partners and C-Level Executives) | AH45: =IFERROR(G45/G$50,0) -> 0% | AI45: 0% | AJ45: 0% | AK45: 0%
C46: Senior Investment Professionals | G46: 0 | H46: 0 | I46: 0 | J46: 0 | V46: Senior Investment Professionals | Y46: 0% | Z46: 0% | AA46: 0% | AB46: 0% | AE46: Senior Investment Professionals | AH46: 0% | AI46: 0% | AJ46: 0% | AK46: 0%
C47: =C35 -> Other Investment Professionals | G47: 0 | H47: 0 | I47: 0 | J47: 0 | V47: =V35 -> Other Investment Professionals | Y47: 0% | Z47: 0% | AA47: 0% | AB47: 0% | AE47: =AE35 -> Other Investment Professionals | AH47: 0% | AI47: 0% | AJ47: 0% | AK47: 0%
C48: =C36 -> Operations and Administration Leadership (Partners and C-Level Executives) | G48: 0 | H48: 0 | I48: 0 | J48: 0 | V48: =V36 -> Operations and Administration Leadership (Partners and C-Level Executives) | Y48: 0% | Z48: 0% | AA48: 0% | AB48: 0% | AE48: =AE36 -> Operations and Administration Leadership (Partners and C-Level Executives) | AH48: 0% | AI48: 0% | AJ48: 0% | AK48: 0%
C49: =C37 -> Other Operations and Administration Professionals | G49: 1 | H49: 0 | I49: 0 | J49: 0 | V49: =V37 -> Other Operations and Administration Professionals | Y49: 7% | Z49: 0% | AA49: 0% | AB49: 0% | AE49: =AE37 -> Other Operations and Administration Professionals | AH49: 100% | AI49: 0% | AJ49: 0% | AK49: 0%
G50: =SUM(G45:G49) -> 1 | H50: =SUM(H45:H49) -> 0 | I50: =SUM(I45:I49) -> 0 | J50: 0 | Y50: 7% | Z50: 0% | AA50: 0% | AB50: 0% | AH50: 100% | AI50: 0% | AJ50: 0% | AK50: 0%
B51: =B27 -> Information Not Collected / Prefer Not To Provide | C51: =C33 -> Firm and Investment Leadership (Partners and C-Level Executives) | G51: 1 | H51: 0 | I51: 0 | J51: 0 | U51: =AB32 -> Information Not Collected / Prefer Not To Provide | V51: =V33 -> Firm and Investment Leadership (Partners and C-Level Executives) | Y51: 7% | Z51: 0% | AA51: 0% | AB51: 0% | AD51: =U51 -> Information Not Collected / Prefer Not To Provide | AE51: =AE33 -> Firm and Investment Leadership (Partners and C-Level Executives) | AH51: =IFERROR(G51/G$56,0) -> 50% | AI51: 0% | AJ51: 0% | AK51: 0%
C52: Senior Investment Professionals | G52: 1 | H52: 0 | I52: 0 | J52: 0 | V52: Senior Investment Professionals | Y52: 7% | Z52: 0% | AA52: 0% | AB52: 0% | AE52: Senior Investment Professionals | AH52: 50% | AI52: 0% | AJ52: 0% | AK52: 0%
C53: =C35 -> Other Investment Professionals | G53: 0 | H53: 0 | I53: 0 | J53: 0 | V53: =V35 -> Other Investment Professionals | Y53: 0% | Z53: 0% | AA53: 0% | AB53: 0% | AE53: =AE35 -> Other Investment Professionals | AH53: 0% | AI53: 0% | AJ53: 0% | AK53: 0%
C54: =C36 -> Operations and Administration Leadership (Partners and C-Level Executives) | G54: 0 | H54: 0 | I54: 0 | J54: 0 | V54: =V36 -> Operations and Administration Leadership (Partners and C-Level Executives) | Y54: 0% | Z54: 0% | AA54: 0% | AB54: 0% | AE54: =AE36 -> Operations and Administration Leadership (Partners and C-Level Executives) | AH54: 0% | AI54: 0% | AJ54: 0% | AK54: 0%
C55: =C37 -> Other Operations and Administration Professionals | G55: 0 | H55: 0 | I55: 0 | J55: 0 | V55: =V37 -> Other Operations and Administration Professionals | Y55: 0% | Z55: 0% | AA55: 0% | AB55: 0% | AE55: =AE37 -> Other Operations and Administration Professionals | AH55: 0% | AI55: 0% | AJ55: 0% | AK55: 0%
G56: =SUM(G51:G55) -> 2 | H56: =SUM(H51:H55) -> 0 | I56: =SUM(I51:I55) -> 0 | J56: 0 | Y56: 14% | Z56: 0% | AA56: 0% | AB56: 0% | AH56: 100% | AI56: 0% | AJ56: 0% | AK56: 0%
F58: Total Firm Employees | G58: =SUM(G38,G44,G50,G56) -> 14 | H58: =SUM(H38,H44,H50,H56) -> 3 | I58: =SUM(I38,I44,I50,I56) -> 2 | J58: =SUM(J38,J44,J50,J56) -> 2 | X58: Total Firm Employees | Y58: =IFERROR(G58/$G$58, "") -> 100% | Z58: =IFERROR(H58/$G$58, "") -> 21% | AA58: =IFERROR(I58/$G$58, "") -> 14% | AB58: =IFERROR(J58/$G$58, "") -> 14%
B60: Additional Diversity Information | G60: Number of Professionals | H60: Total Professionals | I60: % of Total Professionals
B61: LGBTQ2+ | G61: 1 | H61: =$G$58 -> 14 | I61: =IFERROR(G61/H61,"N/A") -> 7%
B62: Veterans | G62: N/A | H62: =$G$58 -> 14 | I62: =IFERROR(G62/H62,"N/A") -> N/A
B63: Persons with disabilities | G63: 0 | H63: 14 | I63: =IFERROR(G63/H63,"N/A") -> 0%
B65: Quantitative - Staff Movement | U65: NOTE: Represents Total Column % (i.e., Total Box illustrates that 100% of the Firms hires that year were Male, 100% of promotions were female, and that gender information was not collected/disclosed on firm departures that year)
G67: =G32 -> Total | J67: =H32 -> Racialized, Black, or People of Color | M67: =I16 -> Indigenous Peoples | P67: =J32 -> Information Not Collected / Prefer Not To Provide | U67: Hiring and Turnover | Z67: =G67 -> Total | AC67: =J67 -> Racialized, Black, or People of Color | AF67: =M67 -> Indigenous Peoples | AI67: =P67 -> Information Not Collected / Prefer Not To Provide
B68: Staff Movement (last 12 months) | G68: Hires | H68: Promotions | I68: Departures | J68: =G68 -> Hires | K68: Promotions | L68: Departures | M68: Hires | N68: Promotions | O68: Departures | P68: =J68 -> Hires | Q68: =K68 -> Promotions | R68: =L68 -> Departures | Z68: Hires | AA68: Promotions | AB68: Departures | AC68: =Z68 -> Hires | AD68: Promotions | AE68: Departures | AF68: Hires | AG68: =AD68 -> Promotions | AH68: =AE68 -> Departures | AI68: =AC68 -> Hires | AJ68: =AD68 -> Promotions | AK68: =AE68 -> Departures
B69: =B17 -> Male | G69: 1 | H69: 0 | I69: 0 | J69: 1 | K69: 0 | L69: 0 | M69: 1 | N69: 0 | O69: 0 | P69: 0 | Q69: 0 | R69: 0 | U69: =B69 -> Male | Z69: =IFERROR(G69/G$73,"N/A") -> 100% | AA69: =IFERROR(H69/H$73,"N/A") -> 0% | AB69: 0% | AC69: 100% | AD69: 0% | AE69: N/A | AF69: 100% | AG69: =IFERROR(N69/N$73,"N/A") -> 0% | AH69: N/A | AI69: N/A | AJ69: 0% | AK69: N/A
B70: =B18 -> Female | G70: 0 | H70: 2 | I70: 0 | J70: 0 | K70: 1 | L70: 0 | M70: 0 | N70: 1 | O70: 0 | P70: 0 | Q70: 1 | R70: 0 | U70: =B70 -> Female | Z70: =IFERROR(G70/G$73,"N/A") -> 0% | AA70: =IFERROR(H70/H$73,"N/A") -> 100% | AB70: 0% | AC70: 0% | AD70: 100% | AE70: N/A | AF70: 0% | AG70: 100% | AH70: N/A | AI70: N/A | AJ70: 100% | AK70: N/A
B71: =B19 -> Nonbinary | G71: 0 | H71: 0 | I71: 0 | J71: 0 | K71: 0 | L71: 0 | M71: 0 | N71: 0 | O71: 0 | P71: 0 | Q71: 0 | R71: 0 | U71: Nonbinary | Z71: =IFERROR(G71/G$73,"N/A") -> 0% | AA71: 0% | AB71: 0% | AC71: 0% | AD71: 0% | AE71: N/A | AF71: 0% | AG71: 0% | AH71: N/A | AI71: N/A | AJ71: 0% | AK71: N/A
B72: =B20 -> Information Not Collected / Prefer Not To Provide | G72: 0 | H72: 0 | I72: 1 | J72: 0 | K72: 0 | L72: 0 | M72: 0 | N72: 0 | O72: 0 | P72: 0 | Q72: 0 | R72: 0 | U72: Information Not Collected / Prefer Not To Provide | Z72: 0% | AA72: 0% | AB72: 100% | AC72: 0% | AD72: 0% | AE72: N/A | AF72: 0% | AG72: 0% | AH72: N/A | AI72: N/A | AJ72: 0% | AK72: N/A
F73: Total Staff Movement (last 12 months) | G73: =SUM(G69:G72) -> 1 | H73: =SUM(H69:H72) -> 2 | I73: =SUM(I69:I72) -> 1 | J73: 1 | K73: 1 | L73: 0 | M73: 1 | N73: 1 | O73: 0 | P73: 0 | Q73: 1 | R73: 0 | Y73: Total Staff Movement (last 12 months) | AC73: =IFERROR(J73/G$73,"N/A") -> 100% | AD73: =IFERROR(K73/H$73,"N/A") -> 50% | AE73: 0% | AF73: =IFERROR(M73/G$73,"N/A") -> 100% | AG73: =IFERROR(N73/H$73,"N/A") -> 50% | AH73: =IFERROR(O73/I$73,"N/A") -> 0% | AI73: =IFERROR(P73/G$73,"N/A") -> 0% | AJ73: =IFERROR(Q73/H$73,"N/A") -> 50% | AK73: =IFERROR(R73/I$73,"N/A") -> 0%
B75: Availability of information beyond gender
B76: If only gender data is provided, please describe your organization's data collection practices and any limitations to the collection of information on diversity beyond gender, e.g., race/ethnicity, LGBTQ2+, veteran status or disability. For example, any privacy or other legal restrictions, team size or lack of an HR function that inhibits voluntary self-identification, etc.
B77: Sample text | M77: Hires | N77: Promotions | O77: Departures
L78: =L17 -> % Female | M78: =IFERROR(G70/G73,"") -> 0% | N78: =IFERROR(H70/H73,"") -> 100% | O78: =IFERROR(I70/I73,"") -> 0%
L79: =L18 -> % Visible Minorities | M79: =IFERROR(J73/G73,"") -> 100% | N79: =IFERROR(K73/H73,"") -> 50% | O79: =IFERROR(L73/I73,"") -> 0%
L80: =L19 -> % Indigenous Peoples | M80: =IFERROR(M73/G73,"") -> 100% | N80: =IFERROR(N73/H73,"") -> 50% | O80: =IFERROR(O73/I73,"") -> 0%
B81: Availability of information beyond metrics provided
B82: Please provide any additional information relevant to the diversity of professionals beyond the metrics captured above.
B83: Sample text

Sheet GP - Qualitative
C2: GP Team Diversity Template
C4: GP Name | E4: ='GP - Quantitative'!C4 -> GP A
C5: Period End | E5: ='GP - Quantitative'!C5 -> December 31, YYYY
C6: Prepared By | E6: ='GP - Quantitative'!C6 -> Name, Title
C8: Summary of GP Annual DEI Metrics
C10: Qualitative
C12: Internal | I12: Yes | J12: No | K12: Describe
I13: Select from dropdown menu
C14: Policies & Practices: Indicate whether the Firm has any of the following in place
C15: 1 | D15: An organizational DEI statement/strategy and/or a Chief Diversity Officer/Champion | K15: Text
C16: =C15+1 -> 2 | D16: A standard code of conduct and/or anti-discrimination policy | K16: Text
C17: 3 | D17: Steps to remove bias from hiring processes and/or widen applicant pool beyond traditional sources | K17: Text
C18: 4 | D18: A family leave policy and/or promotion of flexible work policies or work-life balance | K18: Text
C19: 5 | D19: Mentorship/training programs tailored to diverse hires | K19: Text
C20: 6 | D20: Specialized training for its employees (e.g., leadership, anti-harassment, or culture competency training) | K20: Text
C21: 7 | D21: Organizational culture surveys and method to track progress | K21: Text
C22: 8 | D22: Mental health support to its employees and/or portfolio companies | K22: Text
C23: 9 | D23: A harassment reporting system or an independent ombudsman | K23: Text
C25: Historical Claims
C26: 10 | D26: Have there been any claims of sexual or general harassment, misconduct or discrimination against any current or former Firm employees (while employed by the Firm) within the last 5 years? | K26: Text
C28: Portfolio | I28: Yes | J28: No | K28: Describe
C30: Investing & Monitoring: Indicate whether the Firm
C31: 1 | D31: Has diversity investment targets (diversity on boards, senior mgmt, other) | K31: Text
C32: =C31+1 -> 2 | D32: Tracks and reports on deal flow demographics | K32: Text
C33: =C32+1 -> 3 | D33: Incorporates DEI questions during diligence | K33: Text
C35: Ecosystem | I35: Yes | J35: No | K35: Describe
C37: Community Impact: Indicate whether the Firm
C38: 1 | D38: Volunteers for or partners with any associations or initiatives promoting DEI | K38: Text
C39: 2 | D39: Provides office hours for underrepresented founders | K39: Text
C40: 3 | D40: Seeks diverse speakers for Firm events | K40: Text
C42: Other
C44: Please provide any additional information relevant to the Firm's DEI initiatives beyond the detail captured above.
C45: Text

Sheet Portfolio - DEI - Fund A
B2: Fund Portfolio Diversity Template
E3: Note: | H3: This spreadsheet is meant to aggregate the number of individuals that have self-disclosed within the categories listed. It is understood that some employees / management team members / board members may elect not to self-disclose on one (or many) category(ies).
B4: Fund Name | C4: Fund A | E4: Expand for detailed DEI reporting
B5: Period End | C5: December 31, YYYY | E5: Individual columns are not designed to add up to Total column
E6: Indicate N/A where data is not available | AE6: NOTE: Percentages reflect proportion of employees that self-disclosed within the related category. | AL6: NOTE: Percentages reflect proportion of management team members that self-disclosed within the related category. | AS6: NOTE: Percentages reflect proportion of board members that self-disclosed within the related category.
B7: Summary of Annual Portfolio Company Diversity
H8: All Employees | O8: Management Team | V8: Board of Directors | AE8: All Employees | AL8: Management Team | AS8: Board of Directors
B9: Company Name | C9: Company HQ (Country) | D9: Self Reported Gender & Diversity Metrics | E9: Rationale for Non-Disclosure, if Applicable | F9: Code of Conduct or Anti-Discrimination Policy in place | G9: DEI Policies, Practices or Initiatives in place | H9: # Female | I9: # Racialized, Black, or People of Color | J9: # Indigenous Peoples | K9: # LGBTQ2+ | L9: # Veterans | M9: # Persons with disabilities | N9: # Total Employees | O9: =H9 -> # Female | P9: =I9 -> # Racialized, Black, or People of Color | Q9: =J9 -> # Indigenous Peoples | R9: # LGBTQ2+ | S9: # Veterans | T9: # Persons with disabilities | U9: # Total Management Team | V9: =H9 -> # Female | W9: =I9 -> # Racialized, Black, or People of Color | X9: =J9 -> # Indigenous Peoples | Y9: # LGBTQ2+ | Z9: # Veterans | AA9: # Persons with disabilities | AB9: # Total Board of Directors | AE9: =H9 -> # Female | AF9: =I9 -> # Racialized, Black, or People of Color | AG9: =J9 -> # Indigenous Peoples | AH9: # LGBTQ2+ | AI9: # Veterans | AJ9: # Persons with disabilities | AK9: # Total Employees | AL9: # Female | AM9: # Racialized, Black, or People of Color | AN9: # Indigenous Peoples | AO9: # LGBTQ2+ | AP9: # Veterans | AQ9: # Persons with disabilities | AR9: # Total Management Team | AS9: # Female | AT9: # Racialized, Black, or People of Color | AU9: # Indigenous Peoples | AV9: # LGBTQ2+ | AW9: # Veterans | AX9: # Persons with disabilities | AY9: # Total Board of Directors
B10: Text | C10: See dropdown menu | D10: Yes/No | E10: See dropdown menu | F10: Yes/No | G10: Yes/No | H10: Number at period end | I10: Number at period end | J10: Number at period end | K10: Number at period end | L10: Number at period end | M10: Number at period end | N10: Number at period end | O10: Number at period end | P10: Number at period end | Q10: Number at period end | R10: Number at period end | S10: Number at period end | T10: Number at period end | U10: Number at period end | V10: Number at period end | W10: Number at period end | X10: Number at period end | Y10: Number at period end | Z10: Number at period end | AA10: Number at period end | AB10: Number at period end
B11: Company A | C11: Canada | D11: Yes | E11: N/A | F11: Yes | G11: Yes | H11: 4 | I11: 1 | J11: 1 | K11: 0 | L11: 0 | M11: 1 | N11: 10 | O11: 2 | P11: 1 | Q11: 1 | R11: 0 | S11: 0 | T11: 0 | U11: 5 | V11: 3 | W11: 1 | X11: 1 | Y11: 0 | Z11: 0 | AA11: 0 | AB11: 7 | AE11: =IFERROR(H11/$N11,"") -> 40% | AF11: =IFERROR(I11/$N11,"") -> 10% | AG11: 10% | AH11: 0% | AI11: 0% | AJ11: 10% | AK11: 100% | AL11: =IFERROR(O11/$U11,"") -> 40% | AM11: =IFERROR(P11/$U11,"") -> 20% | AN11: =IFERROR(Q11/$U11,"") -> 20% | AO11: =IFERROR(R11/$U11,"") -> 0% | AP11: 0% | AQ11: 0% | AR11: 100% | AS11: =IFERROR(V11/$AB11,"") -> 43% | AT11: =IFERROR(W11/$AB11,"") -> 14% | AU11: 14% | AV11: 0% | AW11: 0% | AX11: 0% | AY11: 100%
B12: Company B | C12: United States of America | D12: Yes | E12: N/A | F12: No | G12: No | H12: 5 | I12: 2 | J12: 0 | K12: 0 | L12: 1 | M12: 0 | N12: 20 | O12: 3 | P12: 2 | Q12: 0 | R12: 0 | S12: 1 | T12: 0 | U12: 6 | V12: 5 | W12: 2 | X12: 0 | Y12: 0 | Z12: 1 | AA12: 0 | AB12: 8 | AE12: =IFERROR(H12/$N12,"") -> 25% | AF12: 10% | AG12: 0% | AH12: 0% | AI12: 5% | AJ12: 0% | AK12: 100% | AL12: =IFERROR(O12/$U12,"") -> 50% | AM12: 33% | AN12: 0% | AO12: 0% | AP12: 17% | AQ12: 0% | AR12: 100% | AS12: =IFERROR(V12/$AB12,"") -> 63% | AT12: 25% | AU12: 0% | AV12: 0% | AW12: 13% | AX12: 0% | AY12: 100%
B13: Company C | C13: Canada | D13: No | E13: N/A | F13: Yes | G13: Yes | H13: 6 | I13: 3 | J13: 2 | K13: 1 | L13: 0 | M13: 0 | N13: 30 | O13: 1 | P13: 3 | Q13: 2 | R13: 1 | S13: 0 | T13: 1 | U13: 7 | V13: 4 | W13: 3 | X13: 2 | Y13: 1 | Z13: 0 | AA13: 1 | AB13: 9 | AE13: 20% | AF13: 10% | AG13: 7% | AH13: 3% | AI13: 0% | AJ13: 0% | AK13: 100% | AL13: 14% | AM13: 43% | AN13: 29% | AO13: 14% | AP13: 0% | AQ13: 14% | AR13: 100% | AS13: 44% | AT13: 33% | AU13: 22% | AV13: 11% | AW13: 0% | AX13: 11% | AY13: 100%
B14: Company D | C14: France | E14: Data not requested
B15: Company E | C15: United States of America | E15: Data requested, no response from Company
B16: Company F | C16: Canada | E16: Data requested, Company refused to comply
AH27: =IFERROR(K27/$N27,"") ->  | AO27: =IFERROR(R27/$U27,"") ->  | AV27: =IFERROR(Y27/$AB27,"") -> 
AE28: =IFERROR(H28/$N28,"") ->  | AL28: =IFERROR(O28/$U28,"") ->  | AS28: =IFERROR(V28/$AB28,"") -> 

Sheet Sample PC Questionnaire
B2: Portfolio Company Diversity Template
E3: Note: | H3: This spreadsheet is meant to aggregate the number of individuals that have self-disclosed within the categories listed. It is understood that some employees / management team members / board members may elect not to self-disclose on one (or many) category(ies).
B4: Company Name | C4: Company X | E4: Expand for detailed DEI reporting
B5: Period End | C5: December 31, YYYY | E5: Individual columns are not designed to add up to Total column
E6: Indicate N/A where data is not available
B7: Diversity Metrics at Company Level
H8: All Employees | O8: Management Team | V8: Board of Directors
B9: Company Name | C9: Company HQ (Country) | D9: Self-Reported Gender & Diversity Metrics | E9: Rationale for Non-Disclosure, if Applicable | F9: Code of Conduct or Anti-Discrimination Policy in place | G9: DEI Policies, Practices or Initiatives in place | H9: # Female | I9: # Racialized, Black, or People of Color | J9: # Indigenous Peoples | K9: # LGBTQ2+ | L9: # Veterans | M9: # Persons with disabilities | N9: # Total Employees | O9: =H9 -> # Female | P9: =I9 -> # Racialized, Black, or People of Color | Q9: # Indigenous Peoples | R9: # LGBTQ2+ | S9: # Veterans | T9: # Persons with disabilities | U9: # Total Management Team | V9: =H9 -> # Female | W9: =I9 -> # Racialized, Black, or People of Color | X9: # Indigenous Peoples | Y9: # LGBTQ2+ | Z9: # Veterans | AA9: # Persons with disabilities | AB9: # Total Board of Directors
B10: Text | C10: Text | D10: Yes/No | E10: Text | F10: Yes/No | G10: Yes/No | H10: Number at period end | I10: Number at period end | J10: Number at period end | K10: Number at period end | L10: Number at period end | M10: Number at period end | N10: Number at period end | O10: Number at period end | P10: Number at period end | Q10: Number at period end | R10: Number at period end | S10: Number at period end | T10: Number at period end | U10: Number at period end | V10: Number at period end | W10: Number at period end | X10: Number at period end | Y10: Number at period end | Z10: Number at period end | AA10: Number at period end | AB10: Number at period end
B11: =C4 -> Company X | D11: Yes | E11: Text | F11: Yes | G11: Yes | H11: 4 | I11: 1 | J11: 1 | K11: 0 | L11: 0 | M11: 1 | N11: 10 | O11: 2 | P11: 1 | Q11: 1 | R11: 0 | S11: 0 | T11: 0 | U11: 5 | V11: 3 | W11: 1 | X11: 1 | Y11: 0 | Z11: 0 | AA11: 0 | AB11: 7
B13: Availability of information beyond gender
B14: If only gender data is provided, please indicate reasons for lack of information on diversity beyond gender, e.g., race/ethnicity, LGBTQ2+, Veteran status or disability.
B15: Text
B19: Availability of information beyond metrics provided
B20: Please provide any additional information relevant to the diversity of professionals or company policies beyond the metrics captured above.
B21: Text

Sheet Diversity Disclosure Reqs
B2: References
B4: https://www.osler.com/en/resources/regulations/2019/canada-is-first-jurisdiction-worldwide-to-require-diversity-disclosure-beyond-gender-diversity-disc
B5: https://www.sec.gov/divisions/corpfin/guidance/regs-kinterp.htm
B6: https://www.osler.com/en/resources/governance/2021/corporations-canada-reports-on-first-year-of-diversity-disclosure-and-it-s-not-good
B7: http://www.ic.gc.ca/eic/site/cd-dgc.nsf/eng/cs08998.html#s21
B8: https://ilpa.org/dei/
B9: https://www.cfainstitute.org/en/ethics-standards/codes/diversity-equity-inclusion
B10: https://www.privateequitywire.co.uk/2021/11/09/308965/nasdaq-private-fund-manager-dei-data-available-free-investors-february-2022

Sheet Country List (hidden)
A1: Country
A2: Canada
A3: United States of America
A4: Afghanistan
A5: Albania
A6: Algeria
A7: American Samoa
A8: Andorra
A9: Angola
A10: Antigua and Barbuda
A11: Argentina
A12: Armenia
A13: Aruba
A14: Australia
A15: Austria
A16: Azerbaijan
A17: Bahamas
A18: Bahrain
A19: Bangladesh
A20: Barbados
A21: Belarus
A22: Belgium
A23: Belize
A24: Benin
A25: Bermuda
A26: Bhutan
A27: Bolivia
A28: Bosnia and Herzegovina
A29: Botswana
A30: Brazil
A31: British Virgin Islands
A32: Brunei Darussalam
A33: Bulgaria
A34: Burkina Faso
A35: Burundi
A36: Cabo Verde
A37: Cambodia
A38: Cameroon
A39: Canada
A40: Cayman Islands
A41: Central African Republic
A42: Chad
A43: Channel Islands
A44: Chile
A45: China
A46: Colombia
A47: Comoros
A48: Congo, Dem. Rep.
A49: Costa Rica
A50: Côte d'Ivoire
A51: Croatia
A52: Cuba
A53: Curaçao
A54: Cyprus
A55: Czech Republic
A56: Denmark
A57: Djibouti
A58: Dominica
A59: Dominican Republic
A60: Ecuador
A61: Egypt
A62: El Salvador
A63: Equatorial Guinea
A64: Eritrea
A65: Estonia
A66: Ethiopia
A67: Faroe Islands
A68: Fiji
A69: Finland
A70: France
A71: French Polynesia
A72: Gabon
A73: Gambia, The
A74: Georgia
A75: Germany
A76: Ghana
A77: Gibraltar
A78: Greece
A79: Greenland
A80: Grenada
A81: Guam
A82: Guatemala
A83: Guernsey
A84: Guinea
A85: Guinea-Bissau
A86: Guyana
A87: Haiti
A88: Honduras
A89: Hong Kong
A90: Hungary
A91: Iceland
A92: India
A93: Indonesia
A94: Iran, Islamic Rep.
A95: Iraq
A96: Ireland
A97: Isle of Man
A98: Israel
A99: Italy
A100: Ivory Coast
A101: Jamaica
A102: Japan
A103: Jersey
A104: Jordan
A105: Kazakhstan
A106: Kenya
A107: Kiribati
A108: Korea, South
A109: Kosovo
A110: Kuwait
A111: Kyrgyz Republic
A112: Lao PDR
A113: Latvia
A114: Lebanon
A115: Lesotho
A116: Liberia
A117: Libya
A118: Liechtenstein
A119: Lithuania
A120: Luxembourg
A121: Macao SAR, China
A122: Macedonia, FYR
A123: Madagascar
A124: Malawi
A125: Malaysia
A126: Maldives
A127: Mali
A128: Malta
A129: Marshall Islands
A130: Mauritania
A131: Mauritius
A132: Mexico
A133: Micronesia, Fed. Sts.
A134: Moldova
A135: Monaco
A136: Mongolia
A137: Montenegro
A138: Morocco
A139: Mozambique
A140: Myanmar
A141: Myanmar (Burma)
A142: N/A
A143: Namibia
A144: Nauru
A145: Nepal
A146: Netherlands
A147: New Caledonia
A148: New Zealand
A149: Nicaragua
A150: Niger
A151: Nigeria
A152: Northern Mariana Islands
A153: Norway
A154: Oman
A155: Other
A156: Pakistan
A157: Palau
A158: Palestine
A159: Panama
A160: Papua New Guinea
A161: Paraguay
A162: Peru
A163: Philippines
A164: Poland
A165: Portugal
A166: Puerto Rico
A167: Qatar
A168: Romania
A169: Russia
A170: Rwanda
A171: Samoa
A172: San Marino
A173: São Tomé and Principe
A174: Saudi Arabia
A175: Scotland
A176: Senegal
A177: Serbia
A178: Seychelles
A179: Sierra Leone
A180: Singapore
A181: Sint Maarten (Dutch part)
A182: Slovak Republic
A183: Slovenia
A184: Solomon Islands
A185: Somalia
A186: South Africa
A187: South Korea
A188: South Sudan
A189: Spain
A190: Sri Lanka
A191: St. Kitts and Nevis
A192: St. Lucia
A193: St. Martin (French part)
A194: St. Vincent and the Grenadines
A195: Sudan
A196: Suriname
A197: Swaziland
A198: Sweden
A199: Switzerland
A200: Syrian Arab Republic
... 30 more rows

Sheet Reasons (hidden)
A1: Reasons for non-disclosure
A3: Data not requested
A4: Data requested, no response from Company
A5: Data requested, Company refused to comply
A6: N/A
